bitfinex/quotes_ETHUSD_20220101
["timestamp","ask_amount","ask_price","bid_price","bid_amount"]
[1641039109336,0.73458,3703.8,3702.7,0.01477901]
[1641039109537,0.0594,3703.8,3702.7,0.01477901]
[1641039109936,0.0594,3703.8,3703.0,1.10613879]
[1641039110192,3.0867,3704.0,3702.7,0.01477901]
[1641039110394,3.0867,3704.0,3703.1,0.01250531]
[1641039110395,2.67008419,3703.9,3703.1,0.01250531]
[1641039110595,2.67008419,3703.9,3702.6,0.00370064]
[1641039110596,0.67522,3703.6,3702.7,0.01477901]
[1641039110795,2.51640301,3703.5,3702.7,0.01477901]
[1641039110995,2.55263848,3703.5,3702.7,0.01477901]
[1641039111199,3.97812629,3703.7,3702.7,0.01477901]
[1641039111594,1.0,3703.6,3702.7,0.01477901]
[1641039111993,1.35053,3703.7,3702.7,0.01477901]
[1641039112700,2.54557799,3703.9,3702.7,0.01477901]
[1641039112701,0.0578,3703.9,3702.7,0.01477901]
[1641039113296,2.68142065,3703.9,3702.7,0.01477901]
[1641039113496,15.79,3703.8,3702.7,0.01477901]
[1641039113697,0.67527,3703.3,3702.7,0.01477901]
[1641039115535,3.06902003,3703.2,3702.7,0.01477901]
[1641039116237,0.6753,3703.1,3702.7,0.01477901]
[1641039117234,3.06902003,3703.0,3702.7,0.01477901]
[1641039117683,3.50367172,3702.9,3702.7,0.01477901]
[1641039117887,2.48152811,3702.8,3702.7,0.01477901]
[1641039118093,1.0,3702.9,3702.7,0.01477901]
[1641039118389,3.76746063,3702.9,3702.7,0.01477901]
[1641039118588,5.52472374,3702.8,3702.7,0.01477901]
[1641039118988,7.20014374,3702.8,3702.7,0.01477901]
[1641039119188,4.74444003,3702.8,3702.7,0.01477901]
[1641039120190,7.56012786,3702.8,3702.7,0.01477901]
[1641039120393,4.65,3702.7,3702.3,0.06224154]
[1641039120590,0.67547,3702.5,3702.3,0.06224154]
[1641039120790,0.67547,3702.5,3702.4,0.00170527]
[1641039120991,1.73627,3702.5,3702.4,0.00170527]
[1641039121190,0.73627,3702.5,3702.4,0.00170527]
[1641039121429,3.12982003,3702.5,3702.4,0.00170527]
[1641039121633,3.12982003,3702.5,3701.8,0.00511581]
[1641039122537,1.0,3702.9,3701.8,0.00511581]
[1641039122736,1.3,3702.9,3701.8,0.00511581]
[1641039122937,1.0,3702.9,3701.8,0.00511581]
[1641039123134,3.786,3703.0,3701.8,0.00511581]
[1641039123336,3.06951445,3702.8,3701.8,0.00511581]
[1641039124234,0.00113685,3702.9,3701.8,0.00511581]
[1641039124235,3.0706513,3702.9,3701.8,0.00511581]
[1641039124637,3.0706513,3702.9,3701.9,0.67527]
[1641039125187,3.0706513,3702.9,3702.0,0.00397896]
[1641039126389,3.0706513,3702.9,3702.3,1.30708277]
[1641039126795,0.00113685,3702.9,3702.3,1.30708277]
[1641039127391,0.00113685,3702.9,3702.1,0.67524]
[1641039127591,0.00113685,3702.9,3702.0,0.00397896]
[1641039127790,0.00113685,3702.9,3702.2,0.00284212]
[1641039127991,0.00113685,3702.9,3701.7,0.00568423]
[1641039128398,0.00113685,3702.9,3702.0,1.06187363]
[1641039128696,0.00113685,3702.9,3702.1,0.00341054]
[1641039130639,0.00113685,3702.9,3702.1,0.67865054]
[1641039130846,0.00113685,3702.9,3702.8,1.01070944]
[1641039131043,0.00113685,3702.9,3702.2,0.00284212]
[1641039131442,0.00113685,3702.9,3701.7,0.01779389]
[1641039131643,0.00113685,3702.9,3702.4,0.06224135]
[1641039132044,0.00113685,3702.9,3702.5,1.28344064]
[1641039133083,0.00113685,3702.9,3702.6,2.4183292]
[1641039133283,0.00113685,3702.9,3702.7,24.33498648]
[1641039133485,0.00113685,3702.9,3702.8,6.05778489]
[1641039133983,0.00113685,3702.9,3702.8,2.80778489]
[1641039134184,0.00113685,3702.9,3702.8,3.43579478]
[1641039134584,0.00113685,3702.9,3702.8,5.78585478]
[1641039134783,1.36019817,3704.6,3702.9,4.65]
[1641039134983,5.18259817,3704.7,3703.0,3.60196163]
[1641039135185,0.00284212,3703.4,3703.0,5.20196163]
[1641039135391,0.00284212,3703.4,3703.0,5.87681163]
[1641039135590,0.00227369,3703.3,3703.1,2.67041745]
[1641039135790,0.00227369,3703.3,3703.2,2.93824904]
[1641039135993,3.06800975,3704.6,3703.9,1.05097854]
[1641039136190,0.06224063,3704.1,3703.9,1.05097854]
[1641039136436,0.06224063,3704.1,3703.2,4.53824904]
[1641039136640,0.06224063,3704.1,3703.3,0.67488]
[1641039136838,0.06224063,3704.1,3703.4,2.81471537]
[1641039137038,0.06224063,3704.1,3703.4,3.11471537]
[1641039137239,0.00909477,3704.5,3703.9,0.67489]
[1641039137442,0.00909477,3704.5,3703.9,1.93679642]
[1641039137738,0.00852635,3704.4,3703.9,2.67309642]
[1641039137937,0.00852635,3704.4,3704.0,2.43941394]
[1641039138139,0.00795793,3704.3,3704.0,2.43941394]
[1641039138341,0.00795793,3704.3,3704.0,2.43301123]
[1641039138544,0.0073895,3704.2,3704.0,2.43301123]
[1641039138942,0.00682108,3704.1,3703.9,2.67309642]
[1641039139142,0.00682108,3704.1,3704.0,2.41717678]
[1641039139342,1.42029817,3705.3,3704.0,2.41717678]
[1641039139744,0.01307374,3705.2,3704.0,2.41717678]
[1641039140185,0.01250532,3705.1,3704.0,2.41717678]
[1641039140589,0.01193689,3705.0,3704.0,2.41717678]
[1641039140789,0.01193689,3705.0,3704.0,2.40279576]
[1641039140989,0.01136847,3704.9,3704.0,2.41222198]
[1641039141393,0.01080004,3704.8,3703.9,1.93679642]
[1641039141589,0.01080004,3704.8,3704.0,2.39889925]
[1641039141792,0.01023162,3704.7,3704.0,2.39889925]
[1641039141988,0.01023162,3704.7,3704.1,0.67485]
[1641039141989,3.07811686,3704.7,3704.1,0.67485]
[1641039142190,0.0096632,3704.6,3704.1,0.67485]
[1641039142591,0.00909477,3704.5,3703.9,1.26190642]
[1641039142989,0.00852635,3704.4,3703.9,1.26190642]
[1641039143391,0.00795793,3704.3,3703.9,1.26190642]
[1641039143590,0.00795793,3704.3,3703.5,4.876]
[1641039143792,1.36019817,3704.6,3703.5,0.9546]
[1641039143793,0.0073895,3704.2,3703.5,0.9546]
[1641039144237,0.00682108,3704.1,3703.5,5.30743141]
[1641039144636,0.00625266,3704.0,3703.5,5.30743141]
[1641039144936,0.00625266,3704.0,3703.7,0.67494]
[1641039145137,0.00568423,3703.9,3703.8,2.64039154]
[1641039146143,0.00568423,3703.9,3703.8,3.99008154]
[1641039150894,0.00568423,3703.9,3703.8,3.76956682]
[1641039152531,0.00568423,3703.9,3703.8,1.34969]
[1641039152728,0.00568423,3703.9,3703.6,1.26384345]
[1641039153130,0.00511581,3703.8,3703.6,1.26384345]
[1641039153532,1.0,3705.1,3703.6,1.26384345]
[1641039153533,0.00454739,3703.7,3703.6,1.26384345]
[1641039154729,3.07278298,3703.7,3703.6,1.26384345]
[1641039155396,0.00454739,3703.7,3703.6,1.26384345]
[1641039155895,0.00454739,3703.7,3703.2,1.41162743]
[1641039156095,3.07278508,3703.7,3703.2,1.41162743]
[1641039156296,3.07278508,3703.7,3703.2,0.06174743]
[1641039156297,0.00397896,3703.6,3703.2,0.06174743]
[1641039156700,0.00341054,3703.5,3703.2,0.06174743]
[1641039157097,0.00284212,3703.4,3703.2,0.06174743]
[1641039157300,0.00284212,3703.4,3703.1,1.5]
[1641039157495,0.00227369,3703.3,3703.1,1.5]
[1641039157896,0.00170527,3703.2,3703.1,1.5]
[1641039158397,0.00682108,3703.2,3703.1,1.5]
[1641039161638,3.07543799,3703.2,3703.1,1.5]
[1641039162041,0.00682108,3703.2,3703.1,1.5]
[1641039164493,0.00682108,3703.2,3703.1,3.92259569]
[1641039165190,0.00682108,3703.2,3703.1,4.22259569]
[1641039165394,0.00682108,3703.2,3703.1,4.52259569]
[1641039166635,0.00499573,3703.2,3703.1,7.12259569]
[1641039166834,0.00499573,3703.2,3703.1,4.52259569]
[1641039167045,0.00499573,3703.2,3703.1,5.52259569]
[1641039167441,0.00499573,3703.2,3703.1,4.52259569]
[1641039169045,0.00499573,3703.2,3703.1,3.92259569]
[1641039169245,0.00499573,3703.2,3703.1,1.8]
[1641039169444,0.00499573,3703.2,3703.1,4.20292671]
[1641039169647,0.00499573,3703.2,3703.1,4.50292671]
[1641039169845,0.00499573,3703.2,3703.1,2.1]
[1641039170046,0.00499573,3703.2,3703.1,4.51749291]
[1641039172087,0.00499573,3703.2,3703.1,2.1]
[1641039172689,0.00499573,3703.2,3703.1,4.51507976]
[1641039173088,0.00499573,3703.2,3703.1,2.1]
[1641039174959,0.00499573,3703.2,3703.1,1.8]
[1641039175359,0.00499573,3703.2,3703.1,4.5279014]
[1641039175759,0.00499573,3703.2,3703.1,4.50340635]
[1641039176160,0.00499573,3703.2,3703.1,5.51630005]
[1641039177989,0.00499573,3703.2,3703.1,1.8]
[1641039178388,0.00499573,3703.2,3703.1,4.51256768]
[1641039180594,0.00499573,3703.2,3703.1,5.51256768]
[1641039180795,0.00499573,3703.2,3703.1,4.51256768]
[1641039183044,0.00365546,3703.2,3703.1,4.51256768]
[1641039183344,0.00365546,3703.2,3703.1,4.51459645]
[1641039183550,0.00365546,3703.2,3703.1,5.51459645]
[1641039185047,0.00365546,3703.2,3703.1,3.10202877]
[1641039185289,0.00365546,3703.2,3703.1,4.53139456]
[1641039185890,0.00365546,3703.2,3703.1,2.10202877]
[1641039186491,0.00365546,3703.2,3703.1,4.52982417]
[1641039186693,5.546e-05,3703.2,3703.1,9.52982417]
[1641039186895,0.06174832,3704.3,3703.2,4.65]
[1641039187094,0.06174832,3704.3,3703.9,0.01223247]
[1641039187294,0.06174832,3704.3,3703.9,1.04568244]
[1641039187496,0.06174832,3704.3,3703.9,1.34568244]
[1641039187793,0.06174832,3704.3,3703.9,1.63344997]
[1641039188196,0.06174832,3704.3,3704.2,1.37815534]
[1641039188593,0.06288517,3704.3,3704.2,1.37815534]
[1641039188793,0.06288517,3704.3,3704.2,1.67815534]
[1641039189037,0.06288517,3704.3,3704.2,4.11730518]
[1641039189239,0.00113685,3704.3,3704.2,4.11730518]
[1641039189835,0.00113685,3704.3,3704.2,1.67815534]
[1641039190038,0.00113685,3704.3,3704.2,1.97815534]
[1641039190240,0.00113685,3704.3,3704.2,4.38033607]
[1641039190441,0.00113685,3704.3,3704.2,4.35013238]
[1641039190645,0.00113685,3704.3,3704.2,1.97815534]
[1641039191144,0.00113685,3704.3,3704.2,4.39937212]
[1641039191342,0.00113685,3704.3,3704.2,1.97815534]
[1641039191542,0.00113685,3704.3,3704.2,4.37104575]
[1641039191846,0.00113685,3704.3,3704.2,1.97815534]
[1641039192243,0.00113685,3704.3,3704.2,4.36649404]
[1641039194187,0.00113685,3704.3,3704.2,4.40957186]
[1641039194388,0.00113685,3704.3,3704.2,1.97815534]
[1641039195989,0.00113685,3704.3,3704.2,4.37944026]
[1641039196193,0.00113685,3704.3,3704.2,1.97815534]
[1641039196633,0.00113685,3704.3,3704.2,0.3]
[1641039196834,0.00113685,3704.3,3704.1,1.27472]
[1641039198034,0.00113685,3704.3,3704.2,3.40383642]
[1641039200036,0.00113685,3704.3,3704.2,1.00626935]
[1641039200793,0.00113685,3704.3,3704.1,1.27472]
[1641039200996,0.00113685,3704.3,3704.1,0.6]
[1641039201292,0.00113685,3704.3,3704.1,0.3]
[1641039201491,0.00113685,3704.3,3704.0,0.3]
[1641039201690,0.00113685,3704.3,3703.9,0.22474997]
[1641039201891,0.00113685,3704.3,3703.9,1.6227562]
[1641039202790,0.00113685,3704.3,3704.0,0.67482]
[1641039202992,0.00113685,3704.3,3704.0,1.27482]
[1641039203192,0.00113685,3704.3,3704.0,2.27482]
[1641039203397,0.00113685,3704.3,3704.0,0.6]
[1641039203596,0.00113685,3704.3,3703.9,0.82474997]
[1641039203943,0.00113685,3704.3,3703.8,0.06174625]
[1641039204342,0.00113685,3704.3,3703.9,0.00113685]
[1641039204540,0.67507,3704.0,3703.9,0.00113685]
[1641039205745,0.67507,3704.0,3703.5,1.10073615]
[1641039205746,0.67507,3704.0,3703.6,0.00284212]
[1641039205945,1.34705344,3704.1,3703.6,0.00284212]
[1641039207788,2.02210344,3704.1,3703.6,0.00284212]
[1641039209289,3.06839921,3704.0,3703.6,0.00284212]
[1641039209688,3.74347921,3704.0,3703.6,0.00284212]
[1641039210593,0.67508,3704.0,3703.6,0.00284212]
[1641039210995,0.97508,3704.0,3703.6,0.00284212]
[1641039211446,0.67519,3703.8,3703.6,0.00284212]
[1641039211647,0.97519,3703.8,3703.6,0.00284212]
[1641039212049,2.27519,3703.8,3703.6,0.00284212]
[1641039212447,7.71868132,3703.7,3703.6,0.00284212]
[1641039212648,8.71868132,3703.7,3703.6,0.00284212]
[1641039213047,4.06868132,3703.7,3703.6,0.00284212]
[1641039213649,4.06868132,3703.7,3702.3,0.01023162]
[1641039213951,0.67526,3703.1,3702.3,0.01023162]
[1641039214550,0.67526,3703.1,3701.9,0.01250532]
[1641039214948,1.69172855,3703.1,3701.9,0.01250532]
[1641039216814,1.97523,3703.3,3701.9,0.01250532]
[1641039217013,1.3,3703.3,3701.9,0.01250532]
[1641039218417,1.3,3703.3,3702.1,0.67522]
[1641039218818,1.3,3703.3,3702.2,0.01080005]
[1641039223088,3.0582,3703.4,3702.2,2.49026769]
[1641039223488,3.9127,3704.3,3702.3,0.01023162]
[1641039223690,0.061,3704.1,3703.2,1.20139191]
[1641039224088,0.061,3704.1,3703.3,0.00454739]
[1641039226458,1.061,3704.1,3703.3,0.00454739]
[1641039227161,0.061,3704.1,3703.3,0.00454739]
[1641039227359,3.06856006,3704.0,3703.3,0.00454739]
[1641039227760,1.061,3704.1,3703.3,0.00454739]
[1641039228160,0.061,3704.1,3703.3,0.00454739]
[1641039229061,0.061,3704.1,3703.3,0.67955739]
[1641039229460,3.0877,3704.2,3703.4,0.00397896]
[1641039230062,3.0877,3704.2,3703.3,0.00454739]
[1641039230302,3.0877,3704.2,3703.3,0.67953739]
[1641039230699,3.0877,3704.2,3703.4,0.00397896]
[1641039231100,0.0631,3704.5,3703.4,0.00397896]
[1641039231312,1.36019817,3705.0,3703.7,0.01282564]
[1641039231502,1.36019817,3705.0,3704.1,0.67486]
[1641039231503,0.00170527,3704.4,3704.1,0.67486]
[1641039231804,3.06998836,3704.4,3704.1,0.97486]
[1641039232001,3.06828309,3704.4,3704.3,1.61239269]
[1641039232400,3.06998836,3704.4,3704.3,1.61239269]
[1641039232800,0.00170527,3704.4,3704.3,1.61239269]
[1641039233403,0.00170527,3704.4,3704.3,2.28720269]
[1641039233602,0.00170527,3704.4,3704.3,1.98720269]
[1641039233801,0.00170527,3704.4,3704.3,1.01239269]
[1641039234046,0.00170527,3704.4,3704.0,1.34958]
[1641039234244,0.00170527,3704.4,3704.0,1.94958]
[1641039234446,3.06828309,3705.0,3704.0,1.94958]
[1641039234447,0.00113685,3704.3,3704.0,1.94958]
[1641039234645,0.00113685,3704.3,3704.0,0.6]
[1641039234847,0.00454739,3704.9,3704.0,0.3]
[1641039235046,0.00454739,3704.9,3703.9,0.06174605]
[1641039235253,0.00397896,3704.8,3703.9,0.06174605]
[1641039235651,0.00341054,3704.7,3703.9,0.06174605]
[1641039236051,0.00284212,3704.6,3703.9,0.06174605]
[1641039236455,0.00227369,3704.5,3703.9,0.06174605]
[1641039236853,1.36019817,3704.6,3703.9,0.06174605]
[1641039237253,0.00227369,3704.5,3703.9,0.06174605]
[1641039238194,3.07055678,3704.5,3703.9,0.06174605]
[1641039238800,0.00227369,3704.5,3703.9,0.06174605]
[1641039243341,0.00227369,3704.5,3703.9,0.73663605]
[1641039243741,0.00227369,3704.5,3704.0,2.44888445]
[1641039243941,0.00227369,3704.5,3703.9,0.06174605]
[1641039244140,0.00227369,3704.5,3703.9,2.47323803]
[1641039244542,0.00227369,3704.5,3704.0,0.67488]
[1641039245907,0.00227369,3704.5,3703.9,0.06174605]
[1641039247111,0.00227369,3704.5,3704.0,0.67489]
[1641039251350,0.00227369,3704.5,3704.2,1.12761562]
[1641039252993,0.00227369,3704.5,3704.2,1.80246562]
[1641039253797,0.00227369,3704.5,3704.2,3.04826562]
[1641039254394,0.00227369,3704.5,3704.4,4.67471]
[1641039254594,0.00227369,3704.5,3704.4,1.27471]
[1641039255800,0.00227369,3704.5,3704.4,3.78901303]
[1641039256848,0.00227369,3704.5,3704.4,1.27471]
[1641039257046,0.00227369,3704.5,3704.4,0.97471]
[1641039258047,0.00227369,3704.5,3704.4,3.42727289]
[1641039258248,0.00227369,3704.5,3704.4,0.97471]
[1641039259349,0.00227369,3704.5,3704.2,1.12761562]
[1641039259547,0.00227369,3704.5,3704.0,0.22474997]
[1641039264453,0.00227369,3704.5,3704.0,0.89963997]
[1641039264850,0.00227369,3704.5,3704.0,0.52474997]
[1641039265054,0.00227369,3704.5,3704.1,2.36676673]
[1641039266653,0.00227369,3704.5,3704.2,0.6748]
[1641039266853,0.00227369,3704.5,3704.3,2.4414041]
[1641039267052,0.00227369,3704.5,3704.4,3.5466166]
[1641039267254,0.00227369,3704.5,3704.4,3.60205401]
[1641039267797,0.00227369,3704.5,3704.4,3.60518528]
[1641039267996,0.00227369,3704.5,3704.4,1.1966166]
[1641039268197,0.00227369,3704.5,3704.4,3.62409922]
[1641039268396,0.00227369,3704.5,3704.4,1.8713766]
[1641039268799,0.00227369,3704.5,3704.4,4.30623745]
[1641039268998,0.00227369,3704.5,3704.4,4.5792814]
[1641039269197,0.00227369,3704.5,3704.4,1.8713766]
[1641039269598,0.00227369,3704.5,3704.4,4.2910787]
[1641039269798,0.00227369,3704.5,3704.4,1.8713766]
[1641039271459,0.00227369,3704.5,3704.4,2.1713766]
[1641039271653,0.00227369,3704.5,3704.4,4.5789868]
[1641039271855,0.00227369,3704.5,3704.4,4.55217401]
[1641039272055,0.00227369,3704.5,3704.4,4.55953976]
[1641039272856,0.00227369,3704.5,3704.4,2.1713766]
[1641039273056,0.00227369,3704.5,3704.4,4.59301387]
[1641039273456,0.00227369,3704.5,3704.4,4.60570172]
[1641039277624,0.00227369,3704.5,3704.4,2.1713766]
[1641039278327,0.00227369,3704.5,3704.4,4.57557981]
[1641039279855,0.00227369,3704.5,3704.4,2.1713766]
[1641039280455,0.00227369,3704.5,3704.4,3.1713766]
[1641039281858,0.00227369,3704.5,3704.4,5.73396622]
[1641039282158,3.06733354,3705.0,3704.4,5.73396622]
[1641039282159,3.06733354,3705.0,3704.5,4.65]
[1641039282457,3.06733354,3705.0,3704.7,1.6491]
[1641039282458,0.0022737,3704.9,3704.7,1.6491]
[1641039282705,0.06174605,3705.1,3704.9,4.65]
[1641039282908,0.06174605,3705.1,3705.0,2.63963084]
[1641039283105,0.06174605,3705.1,3705.0,6.6629695]
[1641039283306,1.36019817,3706.3,3705.1,0.0606092]
[1641039283508,1.36019817,3706.3,3705.2,0.674486]
[1641039283705,0.00511581,3706.0,3705.6,1.34898]
[1641039283906,0.00511581,3706.0,3705.6,1.94898]
[1641039284104,0.00454738,3705.9,3705.6,2.21388]
[1641039284606,0.00397896,3705.8,3705.7,4.08448689]
[1641039284805,0.00397896,3705.8,3705.7,1.68448689]
[1641039285005,0.00397896,3705.8,3705.7,1.98448689]
[1641039285205,0.00397896,3705.8,3705.7,2.98448689]
[1641039285608,0.00397896,3705.8,3705.7,5.35700811]
[1641039285807,0.00397896,3705.8,3705.7,3.65896689]
[1641039286747,0.00397896,3705.8,3705.7,6.03327766]
[1641039287646,0.00397896,3705.8,3705.7,5.03327766]
[1641039288047,0.00397896,3705.8,3705.7,6.03327766]
[1641039288449,1.36019817,3707.1,3705.8,4.65]
[1641039288649,3.3022,3707.5,3706.0,4.65]
[1641039288650,1.36019817,3707.2,3706.0,4.65]
[1641039288850,1.36019817,3707.2,3706.6,0.6743]
[1641039289049,1.36019817,3707.2,3706.7,1.23059641]
[1641039289449,1.36019817,3707.2,3706.7,1.83059641]
[1641039289950,4.66239817,3707.5,3707.3,1.40308136]
[1641039290410,0.00909477,3707.4,3707.3,1.40308136]
[1641039292710,0.00909477,3707.4,3707.3,1.40677758]
[1641039297461,0.00909477,3707.4,3707.3,2.23152755]
[1641039297698,0.00909477,3707.4,3707.3,3.23152755]
[1641039298101,0.00909477,3707.4,3707.3,2.23152755]
[1641039298702,0.00993868,3707.4,3707.3,2.23152755]
[1641039299702,0.00993868,3707.4,3707.3,4.82744891]
[1641039302652,0.00993868,3707.4,3707.3,9.99644891]
[1641039303050,0.00993868,3707.4,3707.3,7.40052755]
[1641039303249,0.06247852,3708.3,3707.4,4.65]
[1641039303450,0.06247852,3708.3,3708.0,0.67401]
[1641039303650,0.00454739,3708.2,3708.0,0.67401]
[1641039303854,0.00454739,3708.2,3708.1,3.95]
[1641039304049,0.06247852,3708.3,3708.1,2.33615679]
[1641039304451,0.06247852,3708.3,3708.2,1.0]
[1641039304655,0.06247852,3708.3,3708.2,1.6]
[1641039304851,0.06759434,3708.3,3708.2,1.6]
[1641039305305,0.00511582,3708.3,3708.2,1.6]
[1641039305504,0.00511582,3708.3,3708.1,1.33615679]
[1641039305703,0.00511582,3708.3,3708.0,0.67401]
[1641039305903,6.18,3708.9,3707.8,0.06284071]
[1641039305904,0.00454739,3708.2,3707.8,0.06284071]
[1641039306304,0.00397897,3708.1,3707.8,0.06284071]
[1641039306706,0.00341055,3708.0,3707.8,0.06284071]
[1641039306905,0.00341055,3708.0,3707.9,1.18714488]
[1641039307204,1.35951506,3709.0,3707.9,1.18714488]
[1641039307407,1.35951506,3709.0,3707.9,1.48714488]
[1641039307608,0.00852636,3708.9,3708.2,0.67409]
[1641039308006,1.35951506,3709.0,3708.2,0.97409]
[1641039308007,0.00795793,3708.8,3708.2,0.97409]
[1641039308208,0.00885346,3708.8,3708.2,0.3]
[1641039308406,0.00738951,3708.7,3707.9,1.18714488]
[1641039308608,0.00738951,3708.7,3708.0,0.67413]
[1641039308810,0.00682109,3708.6,3708.0,0.67413]
[1641039309261,0.00625266,3708.5,3708.0,0.67413]
[1641039309461,0.00625266,3708.5,3708.4,0.01936678]
[1641039309661,0.00089553,3708.8,3708.4,0.01936678]
[1641039310068,0.00738951,3708.7,3708.4,0.01936678]
[1641039310468,0.00682109,3708.6,3708.4,0.01936678]
[1641039310968,0.00625266,3708.5,3708.4,0.01936678]
[1641039314402,0.00625266,3708.5,3708.4,0.01337852]
[1641039314603,0.00625266,3708.5,3708.4,3.26337852]
[1641039314806,0.00625266,3708.5,3708.4,0.02306191]
[1641039318958,0.00713615,3708.5,3708.4,0.02306191]
[1641039329406,0.00713615,3708.5,3708.4,1.37108191]
[1641039330206,0.00713615,3708.5,3708.4,0.02306191]
[1641039331211,0.00713615,3708.5,3708.4,0.69715191]
[1641039331850,0.00713615,3708.5,3708.4,0.02306191]
[1641039332951,0.00713615,3708.5,3708.4,6.191e-05]
[1641039332952,4.65713615,3708.5,3708.4,6.191e-05]
[1641039333153,8.65626235,3708.5,3708.0,0.06284026]
[1641039333353,10.72143659,3708.5,3708.0,0.06284026]
[1641039333556,0.00568424,3708.4,3708.0,0.06284026]
[1641039334052,1.085726,3708.1,3708.0,0.06284026]
[1641039334455,3.58966536,3708.1,3708.0,0.06284026]
[1641039334654,1.08970497,3708.1,3708.0,0.06284026]
[1641039334853,3.61911252,3708.1,3708.0,0.06284026]
[1641039335054,6.63704427,3708.1,3708.0,0.06284026]
[1641039335321,6.63704427,3708.1,3707.3,5.169]
[1641039335717,0.00341055,3708.0,3707.3,5.169]
[1641039335919,0.00341055,3708.0,3707.6,0.06284117]
[1641039336119,0.00284212,3707.9,3707.6,0.06284117]
[1641039336518,0.0022737,3707.8,3707.6,0.06284117]
[1641039336917,0.00170528,3707.7,3707.6,0.06284117]
[1641039337318,0.00170528,3707.7,3707.4,1.01930779]
[1641039337519,0.00170528,3707.7,3707.3,5.84328]
[1641039337717,0.00113685,3707.6,3707.3,5.169]
[1641039338118,0.00341055,3708.0,3707.3,5.169]
[1641039338622,0.00284212,3707.9,3707.5,1.20936152]
[1641039338820,0.00284212,3707.9,3707.5,1.50936152]
[1641039339055,0.0022737,3707.8,3707.5,1.50936152]
[1641039339456,0.00170528,3707.7,3707.5,1.50936152]
[1641039339857,0.00113685,3707.6,3707.5,1.50936152]
[1641039340255,0.00113685,3707.6,3707.5,2.85770152]
[1641039342559,0.00113685,3707.6,3707.5,1.50936152]
[1641039344007,0.00113685,3707.6,3707.4,0.67426]
[1641039344710,0.00113685,3707.6,3707.3,5.469]
[1641039345010,0.00113685,3707.6,3707.3,6.14329]
[1641039348250,0.00113685,3707.6,3707.3,5.84329]
[1641039348649,0.00113685,3707.6,3707.3,5.169]
[1641039350618,0.00113685,3707.6,3707.3,5.469]
[1641039350619,3.06634264,3707.6,3707.3,5.469]
[1641039351820,0.00113685,3707.6,3707.3,5.469]
[1641039357060,0.00113685,3707.6,3707.3,5.169]
[1641039357708,1.00113685,3707.6,3707.3,5.169]
[1641039357904,2.75097066,3707.5,3707.3,5.169]
[1641039358105,0.00113685,3707.6,3707.3,5.169]
[1641039358309,2.76244143,3707.6,3707.3,5.169]
[1641039358506,3.76244143,3707.6,3707.3,5.169]
[1641039358808,4.43686143,3707.6,3707.3,5.169]
[1641039359409,3.06528789,3707.5,3707.3,5.169]
[1641039359608,3.97967493,3707.4,3707.3,5.169]
[1641039360415,5.65422493,3707.4,3707.3,5.169]
[1641039361014,8.71951282,3707.4,3707.3,5.169]
[1641039361856,6.08554608,3707.4,3707.3,5.169]
[1641039362052,8.65120152,3707.4,3707.3,5.169]
[1641039362252,8.74700534,3707.4,3707.3,5.169]
[1641039363255,5.08554608,3707.4,3707.3,5.169]
[1641039370555,3.73983789,3707.4,3707.3,5.169]
[1641039384890,3.06528789,3707.4,3707.3,5.169]
[1641039385670,3.06528789,3707.5,3707.3,5.169]
[1641039385869,3.06528789,3707.5,3707.3,5.469]
[1641039386271,0.00170528,3707.7,3707.3,5.469]
[1641039386272,3.06699317,3707.7,3707.4,1.05855037]
[1641039386671,0.00113685,3707.6,3707.4,1.05855037]
[1641039390312,7.19906775,3707.6,3707.4,1.05855037]
[1641039390513,7.19906775,3707.6,3707.4,1.35855037]
[1641039392757,7.19906775,3707.6,3707.4,2.03284037]
[1641039394162,7.19906775,3707.6,3707.4,1.73284037]
[1641039395516,7.19906775,3707.6,3707.4,2.03284037]
[1641039396916,7.19906775,3707.6,3707.4,1.35855037]
[1641039399556,7.19906775,3707.6,3707.4,0.3]
[1641039399757,7.19906775,3707.6,3707.3,5.469]
[1641039402060,7.19906775,3707.6,3707.3,5.169]
[1641039412523,7.19906775,3707.6,3707.3,5.469]
[1641039414371,7.19906775,3707.6,3707.3,6.14329]
[1641039414970,7.19906775,3707.6,3707.3,5.469]
[1641039416678,7.1979309,3707.6,3707.3,5.469]
[1641039416875,5.12522502,3707.6,3707.3,5.469]
[1641039418513,4.9705599,3707.6,3707.3,5.469]
[1641039419315,4.9705599,3708.0,3707.3,5.469]
[1641039419612,4.97397045,3708.0,3707.3,5.469]
[1641039420419,3.06524129,3707.9,3707.3,5.169]
[1641039420619,7.89961234,3707.9,3707.3,5.169]
[1641039420817,4.83664475,3707.8,3707.3,5.169]
[1641039421219,0.00170528,3707.7,3707.3,5.169]
[1641039421451,4.83607633,3707.7,3707.3,5.169]
[1641039421652,0.00113685,3707.6,3707.3,5.169]
[1641039421855,4.8355079,3707.6,3707.3,5.169]
[1641039422255,4.8355079,3707.6,3707.3,5.469]
[1641039422855,7.90074919,3707.6,3707.3,5.469]
[1641039423055,7.90074919,3707.6,3707.3,5.769]
[1641039423455,4.8355079,3707.6,3707.3,5.769]
[1641039424460,2.65337198,3707.6,3707.3,5.769]
[1641039424656,2.65337198,3707.6,3707.4,0.67428]
[1641039426419,2.65337198,3707.6,3707.4,1.3484725]
[1641039426615,2.65337198,3707.6,3707.5,0.3]
[1641039426916,2.65337198,3707.6,3707.4,0.67428]
[1641039427318,2.65337198,3707.6,3707.4,0.97428]
[1641039428820,2.65337198,3707.6,3707.5,0.3]
[1641039434313,2.65337198,3707.6,3707.4,1.27428]
[1641039440314,2.65337198,3707.6,3707.4,0.97428]
[1641039440911,2.65337198,3707.6,3707.4,1.27428]
[1641039442312,2.65337198,3707.6,3707.4,1.27797606]
[1641039442512,2.65337198,3707.6,3707.4,1.95215606]
[1641039449214,2.65337198,3707.6,3707.4,1.27797606]
[1641039450317,1.56402764,3707.6,3707.4,1.27797606]
[1641039450519,1.56402764,3707.6,3707.4,0.97797606]
[1641039450715,1.56402764,3707.6,3707.4,0.30369606]
[1641039451016,1.56402764,3707.6,3707.5,0.3]
[1641039451461,1.56402764,3707.6,3707.4,0.00369606]
[1641039451660,1.56289079,3707.6,3707.4,0.00369606]
[1641039452467,1.53290779,3707.6,3707.4,0.00369606]
[1641039452665,2.4272718,3707.5,3707.4,0.00369606]
[1641039452865,2.4272718,3707.5,3707.4,0.30369606]
[1641039452866,1.53290779,3707.5,3707.4,0.30369606]
[1641039453070,4.0416447,3707.5,3707.4,0.00369606]
[1641039453465,1.53290779,3707.5,3707.4,0.00369606]
[1641039453669,4.59847652,3707.5,3707.4,0.00369606]
[1641039453967,7.09299618,3707.5,3707.4,0.00369606]